[Event "EWIBCC 2019"]
[Site "Monte-Carlo"]
[Date "2019.11.29"]
[Round "12.1"]
[White "Stefanova, Antoaneta"]
[Black "Kosteniuk, Alexandra"]
[Result "0-1"]
[ECO "E17"]
[WhiteElo "2481"]
[BlackElo "2483"]
[Annotator "ChessBase"]
[PlyCount "98"]
[EventDate "2019.11.29"]
[EventType "swiss"]
[EventCountry "MNC"]
[SourceTitle "playchess.com"]
[Source "ChessBase"]
[SourceQuality "1"]
[TimeControl "180+2"]

1. Nf3 {[%emt 0:00:00]} Nf6 {[%emt 0:00:00]} 2. g3 {[%emt 0:00:00]} b6 {[%emt 0:00:00]} 3. Bg2 Bb7 4. O-O {[%emt 0:00:02]} e6 {[%emt 0:00:00]} 5. c4 {[%emt 0:00:02]} Be7 {[%emt 0:00:01]} 6. Nc3 {[%emt 0:00:02]} O-O {[%emt 0:00:05]} 7. Re1 {[%emt 0:00:02]} d5 {[%emt 0:00:01]} 8. cxd5 {[%emt 0:00:02]} exd5 {[%emt 0:00:01]} 9. d4 {[%emt 0:00:03]} Na6 {[%emt 0:00:01]} 10. Ne5 {[%emt 0:00:02]} c5 {[%emt 0:00:05]} 11. e3 {[%emt 0:00:08]} Nc7 {[%emt 0:00:18]} 12. b3 {[%emt 0:00:07]} Ne6 {[%emt 0:00:06]} 13. Bb2 {[%emt 0:00:03]} cxd4 {[%emt 0:00:04]} 14. exd4 {[%emt 0:00:01]} Rc8 {[%emt 0:00:05]} 15. Bh3 {[%emt 0:00:08]} Bb4 {[%emt 0:00:15]} 16. Re3 {[%emt 0:00:23]} Ne4 {[%emt 0:00:16]} 17. Nxe4 {[%emt 0:00:07]} dxe4 {[%emt 0:00:01]} 18. Nxf7 {[%emt 0:00:41]} Kxf7 {[%emt 0:00:01]} 19. Qh5+ {[%emt 0:00:02]} Ke7 {[%emt 0:00:32]} 20. Qh4+ {[%emt 0:00:31]} g5 {[%emt 0:00:08]} 21. Qxh7+ {[%emt 0:01:16]} Rf7 22. Qg6 {[%emt 0:00:00]} Qd5 {[%emt 0:00:26]} 23. Bxe6 {[%emt 0:00:00]} Qxe6 {[%emt 0:00:01]} 24. Qxg5+ {[%emt 0:00:00]} Qf6 {[%emt 0:00:25]} 25. Qxf6+ {[%emt 0:00:00]} Kxf6 {[%emt 0:00:01]} 26. d5+ {[%emt 0:00:10]} Kf5 27. g4+ {[%emt 0:00:00]} Kxg4 {[%emt 0:00:05]} 28. Rxe4+ {[%emt 0:00:04]} Rf4 29. h3+ {[%emt 0:00:00]} Kf5 {[%emt 0:00:01]} 30. Re5+ {[%emt 0:00:00]} Kg6 {[%emt 0:00:01]} 31. Rd1 {[%emt 0:00:00]} Bc5 {[%emt 0:00:06]} 32. Rd2 {[%emt 0:00:00]} Rcf8 {[%emt 0:00:04]} 33. Ree2 {[%emt 0:00:00]} Bc8 {[%emt 0:00:11]} 34. Kg2 {[%emt 0:00:00]} Rg8 {[%emt 0:00:05]} 35. d6 {[%emt 0:00:01]} Bd7 {[%emt 0:00:06]} 36. Re7 {[%emt 0:00:03]} Rf7 {[%emt 0:00:01]} 37. f4 {[%emt 0:00:03]} Kf5+ {[%emt 0:00:04]} 38. Kh2 {[%emt 0:00:02]} Rxe7 {[%emt 0:00:01]} 39. dxe7 {[%emt 0:00:01]} Bc6 {[%emt 0:00:06]} 40. Re2 {[%emt 0:00:01]} Re8 {[%emt 0:00:06]} 41. Re5+ {[%emt 0:00:03]} Kxf4 {[%emt 0:00:01]} 42. Re6 {[%emt 0:00:01]} Bd7 {[%emt 0:00:03]} 43. Rf6+ {[%emt 0:00:01]} Ke4 {[%emt 0:00:03]} 44. Kg3 {[%emt 0:00:02]} Rxe7 {[%emt 0:00:07]} 45. Rf4+ {[%emt 0:00:03]} Kd5 {[%emt 0:00:00]} 46. Rh4 {[%emt 0:00:05]} Re3+ {[%emt 0:00:06]} 47. Kf4 {[%emt 0:00:05]} Re4+ {[%emt 0:00:01]} 48. Kg3 {[%emt 0:00:02]} Bf2+ {[%emt 0:00:01]} 49. Kxf2 {[%emt 0:00:01]} Rxh4 {[%emt 0:00:01]} 0-1

[Event "EWIBCC 2019"]
[Site "Monte-Carlo"]
[Date "2019.11.29"]
[Round "12.2"]
[White "Sebag, Marie"]
[Black "Muzychuk, Anna"]
[Result "1/2-1/2"]
[ECO "C81"]
[WhiteElo "2443"]
[BlackElo "2543"]
[Annotator "ChessBase"]
[PlyCount "48"]
[EventDate "2019.11.29"]
[EventType "swiss"]
[EventCountry "MNC"]
[SourceTitle "playchess.com"]
[Source "ChessBase"]
[SourceQuality "1"]
[TimeControl "180+2"]

1. e4 {[%emt 0:00:00]} e5 {[%emt 0:00:00]} 2. Nf3 {[%emt 0:03:04]} Nc6 3. Bb5 {[%emt 0:00:02]} a6 4. Ba4 Nf6 5. O-O {[%emt 0:00:00]} Nxe4 {[%emt 0:00:01]} 6. d4 {[%emt 0:00:00]} b5 {[%emt 0:00:00]} 7. Bb3 {[%emt 0:00:00]} d5 {[%emt 0:00:01]} 8. dxe5 {[%emt 0:00:00]} Be6 {[%emt 0:00:00]} 9. Qe2 {[%emt 0:00:00]} Nc5 {[%emt 0:00:13]} 10. Rd1 {[%emt 0:00:00]} Nxb3 {[%emt 0:00:03]} 11. axb3 {[%emt 0:00:00]} Be7 {[%emt 0:00:06]} 12. c4 {[%emt 0:00:00]} bxc4 {[%emt 0:00:44]} 13. bxc4 {[%emt 0:00:00]} Qd7 {[%emt 0:00:01]} 14. cxd5 {[%emt 0:00:00]} Bxd5 {[%emt 0:00:05]} 15. Nc3 {[%emt 0:00:00]} Bxf3 {[%emt 0:00:05]} 16. Qxf3 {[%emt 0:00:00]} Qe6 {[%emt 0:00:06]} 17. Nd5 {[%emt 0:00:00]} Rc8 {[%emt 0:00:05]} 18. Nxe7 {[%emt 0:00:00]} Nxe7 {[%emt 0:00:05]} 19. Qe2 {[%emt 0:00:00]} Ra8 {[%emt 0:00:09]} 20. Bg5 {[%emt 0:00:00]} O-O {[%emt 0:00:28]} 21. Bxe7 Qxe7 {[%emt 0:00:01]} 22. Rxa6 {[%emt 0:00:02]} Rxa6 {[%emt 0:00:01]} 23. Qxa6 {[%emt 0:00:01]} Qxe5 {[%emt 0:00:01]} 24. Qc4 {[%emt 0:00:02]} Qxb2 {[%emt 0:00:11]} 1/2-1/2

[Event "EWIBCC 2019"]
[Site "Monte-Carlo"]
[Date "2019.11.29"]
[Round "12.5"]
[White "Michna, Marta"]
[Black "Bulmaga, Irina"]
[Result "0-1"]
[ECO "A45"]
[WhiteElo "2366"]
[BlackElo "2435"]
[Annotator "NA"]
[PlyCount "84"]
[EventDate "2019.11.29"]
[EventType "swiss"]
[EventCountry "MNC"]
[SourceTitle "playchess.com"]
[Source "ChessBase"]
[SourceQuality "1"]
[TimeControl "180+2"]

1. d4 {[%emt 0:00:00]} Nf6 {[%emt 0:00:00]} 2. c3 {[%emt 0:00:00]} b6 {[%emt 0:00:05]} 3. Nf3 {[%emt 0:00:02]} Bb7 {[%emt 0:00:01]} 4. Bf4 {[%emt 0:00:02]} d6 {[%emt 0:00:06]} 5. h3 {[%emt 0:00:07]} g6 {[%emt 0:00:02]} 6. Nbd2 {[%emt 0:00:02]} Bg7 {[%emt 0:00:01]} 7. Qc2 {[%emt 0:00:04]} Nbd7 {[%emt 0:00:06]} 8. e4 {[%emt 0:00:10]} O-O {[%emt 0:00:06]} 9. Be2 {[%emt 0:00:06]} e5 {[%emt 0:00:06]} 10. dxe5 {[%emt 0:00:02]} dxe5 {[%emt 0:00:14]} 11. Be3 {[%emt 0:00:01]} a5 {[%emt 0:00:05]} 12. O-O {[%emt 0:00:17]} Qe7 {[%emt 0:00:05]} 13. Rfe1 {[%emt 0:00:35]} Nc5 {[%emt 0:00:03]} 14. Bxc5 {[%emt 0:00:17]} Qxc5 {[%emt 0:00:02]} 15. a4 {[%emt 0:00:06]} Rad8 {[%emt 0:00:06]} 16. Bf1 {[%emt 0:00:17]} Nh5 {[%emt 0:00:17]} 17. Rad1 {[%emt 0:00:26]} Nf4 {[%emt 0:00:03]} 18. g3 {[%emt 0:00:15]} Nh5 {[%emt 0:00:02]} 19. Nb3 {[%emt 0:00:04]} Qe7 {[%emt 0:00:02]} 20. Bg2 {[%emt 0:00:05]} Bc6 {[%emt 0:00:20]} 21. Nbd2 {[%emt 0:00:03]} Qe6 {[%emt 0:00:06]} 22. Ng5 {[%emt 0:00:05]} Qe7 {[%emt 0:00:04]} 23. Ngf3 Rd7 {[%emt 0:01:44]} 24. Nh2 {[%emt 0:00:13]} Rfd8 {[%emt 0:00:00]} 25. Nc4 {[%emt 0:00:02]} Qe6 {[%emt 0:00:00]} 26. Rxd7 {[%emt 0:00:03]} Qxd7 {[%emt 0:00:00]} 27. Ne3 {[%emt 0:00:04]} Bxa4 {[%emt 0:00:00]} 28. Qb1 {[%emt 0:00:01]} Bc6 {[%emt 0:00:00]} 29. Nd5 {[%emt 0:00:01]} Nf6 {[%emt 0:00:00]} 30. c4 {[%emt 0:00:00]} b5 {[%emt 0:00:00]} 31. Nf3 {[%emt 0:00:05]} Nxd5 {[%emt 0:00:00]} 32. exd5 {[%emt 0:00:01]} Bb7 {[%emt 0:00:00]} 33. Nxe5 {[%emt 0:00:01]} Qd6 {[%emt 0:00:00]} 34. c5 {[%emt 0:00:19]} Qxc5 {[%emt 0:00:00]} 35. Nc6 {[%emt 0:00:03]} Bxc6 {[%emt 0:00:00]} 36. dxc6 {[%emt 0:00:00]} h5 {[%emt 0:00:00]} 37. h4 {[%emt 0:00:01]} Qb4 {[%emt 0:00:00]} 38. Kh2 {[%emt 0:00:02]} a4 {[%emt 0:00:00]} 39. Qe4 {[%emt 0:00:03]} Qxe4 {[%emt 0:00:01]} 40. Rxe4 {[%emt 0:00:01]} Bxb2 {[%emt 0:00:33]} 41. Rb4 a3 {[%emt 0:00:00]} 42. Rxb5 {[%emt 0:00:18]} a2 {[%emt 0:00:00]} 0-1

[Event "EWIBCC 2019"]
[Site "Monte-Carlo"]
[Date "2019.11.29"]
[Round "12.6"]
[White "Zhukova, Natalia"]
[Black "Paehtz, Elisabeth"]
[Result "1-0"]
[ECO "A10"]
[WhiteElo "2323"]
[BlackElo "2484"]
[Annotator "ChessBase"]
[PlyCount "63"]
[EventDate "2019.11.29"]
[EventType "swiss"]
[EventCountry "MNC"]
[SourceTitle "playchess.com"]
[Source "ChessBase"]
[SourceQuality "1"]
[TimeControl "180+2"]

1. c4 {[%emt 0:00:00]} b6 {[%emt 0:00:00]} 2. Nc3 {[%emt 0:00:01]} Bb7 {[%emt 0:00:00]} 3. e4 {[%emt 0:00:02]} e6 {[%emt 0:00:00]} 4. Nf3 {[%emt 0:00:12]} Bb4 {[%emt 0:00:03]} 5. Bd3 {[%emt 0:00:01]} Bxc3 {[%emt 0:00:06]} 6. dxc3 {[%emt 0:00:02]} d6 {[%emt 0:00:03]} 7. O-O {[%emt 0:00:03]} e5 {[%emt 0:00:02]} 8. b4 {[%emt 0:00:26]} Nd7 {[%emt 0:00:02]} 9. a4 {[%emt 0:00:16]} Ngf6 {[%emt 0:00:05]} 10. Qe2 {[%emt 0:00:08]} a5 {[%emt 0:00:06]} 11. Nh4 {[%emt 0:00:12]} Nf8 {[%emt 0:00:35]} 12. c5 {[%emt 0:00:20]} Ne6 {[%emt 0:00:10]} 13. cxd6 {[%emt 0:00:11]} cxd6 {[%emt 0:00:08]} 14. Bb5+ {[%emt 0:00:09]} Kf8 {[%emt 0:00:07]} 15. Bd3 {[%emt 0:00:12]} axb4 {[%emt 0:00:11]} 16. cxb4 {[%emt 0:00:04]} Nd4 {[%emt 0:00:05]} 17. Qe3 {[%emt 0:00:12]} h6 {[%emt 0:00:32]} 18. Bb2 {[%emt 0:00:17]} g5 {[%emt 0:00:02]} 19. Nf5 {[%emt 0:00:20]} Nxf5 {[%emt 0:00:02]} 20. exf5 {[%emt 0:00:01]} Kg7 {[%emt 0:00:04]} 21. Rfd1 {[%emt 0:00:13]} Nd5 {[%emt 0:00:18]} 22. Qf3 {[%emt 0:00:07]} Bc6 {[%emt 0:00:38]} 23. Be4 {[%emt 0:00:02]} Qf6 {[%emt 0:00:10]} 24. Bxd5 Bxd5 {[%emt 0:00:01]} 25. Rxd5 {[%emt 0:00:04]} Rhd8 {[%emt 0:00:03]} 26. h3 {[%emt 0:00:02]} Rac8 {[%emt 0:00:01]} 27. Rad1 {[%emt 0:00:06]} Rc4 {[%emt 0:00:02]} 28. Bxe5 {[%emt 0:00:05]} dxe5 {[%emt 0:00:04]} 29. Rxd8 {[%emt 0:00:01]} Rf4 {[%emt 0:00:02]} 30. Qa8 {[%emt 0:00:01]} Qxf5 {[%emt 0:00:03]} 31. Rg8+ {[%emt 0:00:02]} Kf6 {[%emt 0:00:02]} 32. Qd8+ {[%emt 0:00:03]} 1-0

[Event "EWIBCC 2019"]
[Site "Monte-Carlo"]
[Date "2019.11.29"]
[Round "12.7"]
[White "Berend, Elvira"]
[Black "Savina, Anastasia"]
[Result "1/2-1/2"]
[ECO "E60"]
[WhiteElo "2349"]
[BlackElo "2354"]
[Annotator "ChessBase"]
[PlyCount "202"]
[EventDate "2019.11.29"]
[EventType "swiss"]
[EventCountry "MNC"]
[SourceTitle "playchess.com"]
[Source "ChessBase"]
[SourceQuality "1"]
[TimeControl "180+2"]

1. d4 {[%emt 0:00:00]} Nf6 {[%emt 0:00:01]} 2. c4 {[%emt 0:00:00]} g6 {[%emt 0:00:01]} 3. Nf3 {[%emt 0:00:02]} Bg7 {[%emt 0:00:01]} 4. g3 {[%emt 0:00:02]} c5 {[%emt 0:00:02]} 5. d5 {[%emt 0:00:14]} b5 {[%emt 0:00:03]} 6. cxb5 {[%emt 0:00:01]} a6 {[%emt 0:00:01]} 7. b6 {[%emt 0:00:02]} d6 {[%emt 0:00:03]} 8. Bg2 {[%emt 0:00:02]} O-O {[%emt 0:00:03]} 9. O-O {[%emt 0:00:02]} Nbd7 {[%emt 0:00:05]} 10. Nc3 {[%emt 0:00:02]} Nxb6 {[%emt 0:00:01]} 11. e4 {[%emt 0:00:05]} Nfd7 {[%emt 0:00:08]} 12. Bg5 {[%emt 0:00:07]} a5 {[%emt 0:00:19]} 13. Qc1 {[%emt 0:00:05]} Ba6 {[%emt 0:00:03]} 14. Re1 {[%emt 0:00:01]} Nc4 {[%emt 0:00:11]} 15. Bh6 {[%emt 0:00:07]} Nce5 {[%emt 0:00:12]} 16. Nxe5 {[%emt 0:00:04]} Nxe5 {[%emt 0:00:02]} 17. Bxg7 {[%emt 0:00:02]} Kxg7 {[%emt 0:00:01]} 18. Qc2 {[%emt 0:00:16]} Rb8 {[%emt 0:00:07]} 19. Rad1 {[%emt 0:00:04]} c4 {[%emt 0:00:09]} 20. Rb1 {[%emt 0:00:32]} Qc7 {[%emt 0:00:22]} 21. Red1 {[%emt 0:00:19]} Qa7 {[%emt 0:00:20]} 22. Ne2 {[%emt 0:00:10]} Nd3 {[%emt 0:00:06]} 23. Qc3+ {[%emt 0:00:05]} Kg8 {[%emt 0:00:32]} 24. Nd4 {[%emt 0:00:01]} e5 {[%emt 0:00:05]} 25. dxe6 {[%emt 0:00:04]} fxe6 {[%emt 0:00:01]} 26. Rd2 {[%emt 0:00:20]} Rbe8 {[%emt 0:00:10]} 27. Bf1 {[%emt 0:00:07]} e5 {[%emt 0:00:15]} 28. Bxd3 {[%emt 0:00:15]} cxd3 {[%emt 0:00:20]} 29. Nc6 {[%emt 0:00:02]} Qb6 {[%emt 0:00:06]} 30. Qb3+ {[%emt 0:00:09]} Qxb3 {[%emt 0:00:01]} 31. axb3 {[%emt 0:00:01]} Bb7 {[%emt 0:00:05]} 32. Nxa5 {[%emt 0:00:04]} Bxe4 {[%emt 0:00:01]} 33. Nc4 {[%emt 0:00:02]} d5 {[%emt 0:00:01]} 34. Nd6 {[%emt 0:00:01]} Rb8 {[%emt 0:00:04]} 35. Nxe4 {[%emt 0:00:01]} dxe4 {[%emt 0:00:00]} 36. Re1 {[%emt 0:00:01]} Rb4 {[%emt 0:00:03]} 37. Kg2 {[%emt 0:00:01]} Rd8 {[%emt 0:00:02]} 38. f3 {[%emt 0:00:04]} exf3+ {[%emt 0:00:03]} 39. Kxf3 {[%emt 0:00:01]} Rd5 {[%emt 0:00:04]} 40. Re3 {[%emt 0:00:05]} Rxb3 {[%emt 0:00:01]} 41. Ke4 {[%emt 0:00:00]} Rdb5 {[%emt 0:00:04]} 42. Rexd3 {[%emt 0:00:04]} Rxd3 {[%emt 0:00:02]} 43. Rxd3 {[%emt 0:00:00]} Rxb2 {[%emt 0:00:01]} 44. Kxe5 {[%emt 0:00:03]} Rxh2 {[%emt 0:00:01]} 45. Kf6 {[%emt 0:00:00]} Rf2+ {[%emt 0:00:01]} 46. Kg5 {[%emt 0:00:02]} Rf5+ {[%emt 0:00:02]} 47. Kg4 {[%emt 0:00:01]} Kg7 {[%emt 0:00:01]} 48. Rd7+ {[%emt 0:00:02]} Kh6 {[%emt 0:00:01]} 49. Kh3 {[%emt 0:00:02]} Rf6 {[%emt 0:00:02]} 50. Kg4 {[%emt 0:00:01]} Ra6 {[%emt 0:00:01]} 51. Rc7 {[%emt 0:00:00]} Ra4+ {[%emt 0:00:01]} 52. Kf3 {[%emt 0:00:03]} g5 {[%emt 0:00:03]} 53. g4 {[%emt 0:00:18]} Ra3+ {[%emt 0:00:01]} 54. Kg2 {[%emt 0:00:01]} Kg6 {[%emt 0:00:02]} 55. Rc6+ {[%emt 0:00:01]} Kf7 {[%emt 0:00:02]} 56. Rb6 {[%emt 0:00:03]} Re3 {[%emt 0:00:02]} 57. Rh6 {[%emt 0:00:04]} Kg7 {[%emt 0:00:01]} 58. Rb6 {[%emt 0:00:00]} Re7 {[%emt 0:00:04]} 59. Kg3 {[%emt 0:00:01]} Rf7 {[%emt 0:00:01]} 60. Rb5 {[%emt 0:00:01]} Kg6 {[%emt 0:00:01]} 61. Rb6+ {[%emt 0:00:01]} Rf6 {[%emt 0:00:01]} 62. Rb3 {[%emt 0:00:00]} h6 {[%emt 0:00:02]} 63. Rc3 {[%emt 0:00:01]} Ra6 {[%emt 0:00:01]} 64. Rd3 {[%emt 0:00:00]} Kf6 {[%emt 0:00:01]} 65. Rf3+ {[%emt 0:00:01]} Ke5 {[%emt 0:00:01]} 66. Re3+ {[%emt 0:00:01]} Kd4 {[%emt 0:00:01]} 67. Re8 {[%emt 0:00:06]} Ra3+ {[%emt 0:00:02]} 68. Kg2 {[%emt 0:00:01]} Re3 {[%emt 0:00:02]} 69. Rh8 {[%emt 0:00:03]} Re6 {[%emt 0:00:03]} 70. Kf3 {[%emt 0:00:01]} Rf6+ {[%emt 0:00:17]} 71. Kg3 Ke5 {[%emt 0:00:00]} 72. Re8+ {[%emt 0:00:01]} Re6 {[%emt 0:00:00]} 73. Rh8 {[%emt 0:00:01]} Ke4 {[%emt 0:00:00]} 74. Rh7 {[%emt 0:00:02]} Ke3 {[%emt 0:00:00]} 75. Rh8 {[%emt 0:00:02]} Ke2 {[%emt 0:00:00]} 76. Rh7 {[%emt 0:00:02]} Kf1 {[%emt 0:00:00]} 77. Kf3 {[%emt 0:00:04]} Kg1 {[%emt 0:00:00]} 78. Ra7 {[%emt 0:00:08]} Kh2 {[%emt 0:00:03]} 79. Ra5 {[%emt 0:00:18]} Rb6 {[%emt 0:00:05]} 80. Ke4 {[%emt 0:00:10]} Kg3 {[%emt 0:00:02]} 81. Kf5 {[%emt 0:00:02]} Kh4 {[%emt 0:00:04]} 82. Rc5 {[%emt 0:00:01]} Rb4 {[%emt 0:00:02]} 83. Rc6 {[%emt 0:00:04]} Rf4+ {[%emt 0:00:01]} 84. Ke5 {[%emt 0:00:02]} Kxg4 {[%emt 0:00:02]} 85. Rxh6 {[%emt 0:00:01]} Kg3 {[%emt 0:00:01]} 86. Rh1 {[%emt 0:00:02]} Rf8 {[%emt 0:00:05]} 87. Rg1+ {[%emt 0:00:01]} Kh4 {[%emt 0:00:01]} 88. Rh1+ {[%emt 0:00:01]} Kg4 {[%emt 0:00:03]} 89. Rg1+ {[%emt 0:00:00]} Kh5 {[%emt 0:00:01]} 90. Rh1+ {[%emt 0:00:01]} Kg6 {[%emt 0:00:01]} 91. Ke4 {[%emt 0:00:02]} g4 {[%emt 0:00:02]} 92. Ke3 {[%emt 0:00:01]} Kg5 {[%emt 0:00:01]} 93. Ke2 {[%emt 0:00:01]} g3 {[%emt 0:00:02]} 94. Rf1 {[%emt 0:00:05]} Re8+ {[%emt 0:00:08]} 95. Kf3 {[%emt 0:00:01]} Rf8+ {[%emt 0:00:02]} 96. Kg2 {[%emt 0:00:01]} Rxf1 {[%emt 0:00:02]} 97. Kxf1 {[%emt 0:00:01]} Kf4 {[%emt 0:00:01]} 98. Kg2 {[%emt 0:00:01]} Kg4 {[%emt 0:00:01]} 99. Kg1 {[%emt 0:00:00]} Kf3 {[%emt 0:00:01]} 100. Kf1 {[%emt 0:00:01]} g2+ {[%emt 0:00:09]} 101. Kg1 Kg3 {[%emt 0:00:00]} 1/2-1/2

[Event "EWIBCC 2019"]
[Site "Monte-Carlo"]
[Date "2019.11.29"]
[Round "12.8"]
[White "Belenkaya, Dina"]
[Black "Mkrtchian, Lilit"]
[Result "0-1"]
[ECO "C00"]
[WhiteElo "2302"]
[BlackElo "2402"]
[Annotator "ChessBase"]
[PlyCount "98"]
[EventDate "2019.11.29"]
[EventType "swiss"]
[EventCountry "MNC"]
[SourceTitle "playchess.com"]
[Source "ChessBase"]
[SourceQuality "1"]
[TimeControl "180+2"]

1. e4 {[%emt 0:00:00]} e6 {[%emt 0:00:00]} 2. Qe2 {[%emt 0:00:01]} c5 {[%emt 0:00:01]} 3. g3 {[%emt 0:00:02]} Nc6 {[%emt 0:00:01]} 4. Nf3 {[%emt 0:00:02]} g6 {[%emt 0:00:03]} 5. Bg2 {[%emt 0:00:02]} Bg7 {[%emt 0:00:01]} 6. d3 {[%emt 0:00:02]} Nge7 {[%emt 0:00:06]} 7. h4 {[%emt 0:00:01]} h6 {[%emt 0:00:05]} 8. c3 {[%emt 0:00:21]} d6 {[%emt 0:00:01]} 9. Nbd2 {[%emt 0:00:05]} b5 {[%emt 0:00:21]} 10. O-O {[%emt 0:00:20]} Rb8 {[%emt 0:00:07]} 11. Re1 {[%emt 0:00:03]} O-O {[%emt 0:00:10]} 12. Nf1 {[%emt 0:00:02]} b4 {[%emt 0:00:03]} 13. Qc2 {[%emt 0:00:07]} Ba6 {[%emt 0:00:32]} 14. N1h2 {[%emt 0:00:05]} bxc3 {[%emt 0:00:13]} 15. bxc3 {[%emt 0:00:01]} Qa5 {[%emt 0:00:19]} 16. Bd2 {[%emt 0:00:19]} Qb5 {[%emt 0:00:06]} 17. Bf1 {[%emt 0:00:26]} Qb2 {[%emt 0:00:04]} 18. Qc1 {[%emt 0:00:13]} Qxc1 {[%emt 0:00:05]} 19. Rexc1 {[%emt 0:00:01]} Rb2 {[%emt 0:00:06]} 20. Ng4 {[%emt 0:00:23]} Kh7 {[%emt 0:00:02]} 21. Ne3 {[%emt 0:00:03]} f5 {[%emt 0:00:13]} 22. Nd1 {[%emt 0:00:04]} Rbb8 {[%emt 0:00:08]} 23. Ne1 {[%emt 0:00:25]} fxe4 {[%emt 0:00:14]} 24. dxe4 {[%emt 0:00:01]} Bxf1 {[%emt 0:00:02]} 25. Kxf1 {[%emt 0:00:02]} Ne5 {[%emt 0:00:06]} 26. Ke2 {[%emt 0:00:10]} Nc4 {[%emt 0:00:08]} 27. Bf4 {[%emt 0:00:05]} Nc6 {[%emt 0:00:08]} 28. Nd3 {[%emt 0:00:03]} Rb6 {[%emt 0:00:31]} 29. Rab1 {[%emt 0:00:02]} Rfb8 {[%emt 0:00:00]} 30. Rxb6 {[%emt 0:00:01]} Rxb6 {[%emt 0:00:00]} 31. g4 {[%emt 0:00:07]} Ra6 {[%emt 0:00:00]} 32. Rc2 {[%emt 0:00:05]} d5 {[%emt 0:00:00]} 33. exd5 exd5 {[%emt 0:00:00]} 34. Nxc5 {[%emt 0:00:02]} Rb6 {[%emt 0:00:04]} 35. Ne6 {[%emt 0:00:02]} Be5 {[%emt 0:00:03]} 36. Be3 {[%emt 0:00:07]} Rb8 {[%emt 0:00:02]} 37. Nc5 {[%emt 0:00:03]} Re8 {[%emt 0:00:02]} 38. a4 {[%emt 0:00:05]} Nxe3 {[%emt 0:00:01]} 39. Nxe3 {[%emt 0:00:02]} d4 {[%emt 0:00:01]} 40. Nd5 {[%emt 0:00:03]} Kg7 {[%emt 0:00:07]} 41. f3 {[%emt 0:00:09]} Bd6+ {[%emt 0:00:01]} 42. Ne4 {[%emt 0:00:01]} Be5 {[%emt 0:00:03]} 43. c4 {[%emt 0:00:02]} Rb8 {[%emt 0:00:02]} 44. c5 {[%emt 0:00:03]} Rb3 {[%emt 0:00:01]} 45. Kd2 {[%emt 0:00:03]} d3 {[%emt 0:00:01]} 46. Ra2 {[%emt 0:00:01]} Nd4 {[%emt 0:00:02]} 47. f4 {[%emt 0:00:02]} Nf3+ {[%emt 0:00:02]} 48. Ke3 {[%emt 0:00:01]} d2+ {[%emt 0:00:00] Kxf3 d1=Q+} 49. Kf2 {[%emt 0:00:00] Qxd5 fxe5 Qxe4 Re2 Qf3+ Ke1} Rb1 {[%emt 0:00:00]} 0-1

[Event "EWIBCC 2019"]
[Site "Monte-Carlo"]
[Date "2019.11.29"]
[Round "12.9"]
[White "Benmesbah, Natacha"]
[Black "Gaponenko, Inna"]
[Result "1-0"]
[ECO "B08"]
[WhiteElo "2265"]
[BlackElo "2427"]
[Annotator "ChessBase"]
[PlyCount "136"]
[EventDate "2019.11.29"]
[EventType "swiss"]
[EventCountry "MNC"]
[SourceTitle "playchess.com"]
[Source "ChessBase"]
[SourceQuality "1"]
[TimeControl "180+2"]

1. e4 {[%emt 0:00:00]} d6 {[%emt 0:00:00]} 2. d4 {[%emt 0:00:01]} Nf6 {[%emt 0:00:00]} 3. Nc3 {[%emt 0:00:01]} g6 {[%emt 0:00:00]} 4. Nf3 {[%emt 0:00:05]} Bg7 {[%emt 0:00:01]} 5. a3 {[%emt 0:00:06]} O-O {[%emt 0:00:02]} 6. Bc4 {[%emt 0:00:04]} c5 {[%emt 0:00:01]} 7. dxc5 {[%emt 0:00:13]} dxc5 {[%emt 0:00:01]} 8. Qxd8 {[%emt 0:00:17]} Rxd8 {[%emt 0:00:02]} 9. O-O {[%emt 0:00:06]} Nc6 {[%emt 0:00:02]} 10. Be3 {[%emt 0:00:02]} b6 {[%emt 0:00:08]} 11. h3 {[%emt 0:00:11]} Bb7 {[%emt 0:00:06]} 12. e5 {[%emt 0:00:06]} Ne8 {[%emt 0:00:10]} 13. e6 {[%emt 0:00:08]} f5 {[%emt 0:00:05]} 14. Rad1 {[%emt 0:00:04]} Nd6 {[%emt 0:00:07]} 15. Bd5 {[%emt 0:00:05]} Na5 {[%emt 0:00:11]} 16. Bxb7 {[%emt 0:00:08]} Ndxb7 {[%emt 0:00:10]} 17. Nd5 {[%emt 0:00:07]} Nc6 {[%emt 0:00:15]} 18. c3 {[%emt 0:00:03]} Nba5 {[%emt 0:00:17]} 19. Bg5 {[%emt 0:00:10]} Kf8 {[%emt 0:00:01]} 20. b4 {[%emt 0:00:03]} Nc4 {[%emt 0:00:08]} 21. b5 {[%emt 0:00:03]} h6 {[%emt 0:00:11]} 22. bxc6 {[%emt 0:00:09]} hxg5 {[%emt 0:00:01]} 23. c7 {[%emt 0:00:01]} Rdc8 {[%emt 0:00:15]} 24. Nxg5 {[%emt 0:00:07]} Be5 {[%emt 0:00:05]} 25. Rfe1 {[%emt 0:01:03]} Bxc7 {[%emt 0:00:19]} 26. Nxc7 {[%emt 0:00:12]} Rxc7 {[%emt 0:00:01]} 27. Rd7 {[%emt 0:00:01]} Rac8 {[%emt 0:00:04]} 28. Red1 {[%emt 0:00:02]} Nd6 {[%emt 0:00:31]} 29. f4 {[%emt 0:00:07]} Ke8 {[%emt 0:00:05]} 30. Rxc7 {[%emt 0:00:05]} Rxc7 {[%emt 0:00:01]} 31. Nf3 {[%emt 0:00:03]} Nc4 {[%emt 0:00:01]} 32. Nh4 {[%emt 0:00:01]} Rc6 {[%emt 0:00:03]} 33. Re1 {[%emt 0:00:02]} Nxa3 {[%emt 0:00:12]} 34. Nxg6 {[%emt 0:00:01]} Nc4 {[%emt 0:00:01]} 35. h4 {[%emt 0:00:02]} Nd6 {[%emt 0:00:07]} 36. Ne5 {[%emt 0:00:01]} Rc8 {[%emt 0:00:03]} 37. h5 {[%emt 0:00:01]} Ne4 {[%emt 0:00:04]} 38. h6 {[%emt 0:00:06]} Nf6 {[%emt 0:00:01]} 39. Ra1 {[%emt 0:00:03]} a5 {[%emt 0:00:10]} 40. c4 {[%emt 0:00:01]} Rd8 {[%emt 0:00:05]} 41. Rb1 {[%emt 0:00:03]} Rd6 {[%emt 0:00:00]} 42. Nd7 {[%emt 0:00:04]} Rxe6 {[%emt 0:00:06]} 43. Nxb6 {[%emt 0:00:01]} Ne4 {[%emt 0:00:03]} 44. Nd5 {[%emt 0:00:02]} Rxh6 {[%emt 0:00:02]} 45. Rb8+ {[%emt 0:00:01]} Kf7 {[%emt 0:00:02]} 46. Ra8 {[%emt 0:00:00]} Nd6 {[%emt 0:00:02]} 47. Rxa5 {[%emt 0:00:02]} Nxc4 {[%emt 0:00:02]} 48. Ra7 {[%emt 0:00:00]} Re6 {[%emt 0:00:01]} 49. Rc7 {[%emt 0:00:02]} Nd6 {[%emt 0:00:09]} 50. Rxc5 {[%emt 0:00:02]} Re1+ {[%emt 0:00:01]} 51. Kf2 {[%emt 0:00:02]} Rd1 {[%emt 0:00:01]} 52. Kf3 {[%emt 0:00:03]} Ne4 {[%emt 0:00:02]} 53. Ra5 {[%emt 0:00:01]} Rd3+ {[%emt 0:00:01]} 54. Ke2 {[%emt 0:00:01]} Rd2+ {[%emt 0:00:02]} 55. Kf3 {[%emt 0:00:01]} Rf2+ {[%emt 0:00:01]} 56. Ke3 {[%emt 0:00:01]} Rxg2 {[%emt 0:00:01]} 57. Ra7 {[%emt 0:00:01]} Ke6 {[%emt 0:00:01]} 58. Nxe7 {[%emt 0:00:02]} Rg3+ {[%emt 0:00:03]} 59. Ke2 {[%emt 0:00:01]} Rg4 {[%emt 0:00:03]} 60. Ke3 {[%emt 0:00:00]} Nf6 {[%emt 0:00:04]} 61. Nc6 {[%emt 0:00:02]} Nd5+ {[%emt 0:00:01]} 62. Kd3 {[%emt 0:00:01]} Rxf4 {[%emt 0:00:02]} 63. Nd4+ {[%emt 0:00:02]} Ke5 {[%emt 0:00:02]} 64. Ne2 {[%emt 0:00:02]} Rf3+ {[%emt 0:00:01]} 65. Kd2 {[%emt 0:00:00]} Rb3 {[%emt 0:00:02]} 66. Ra2 {[%emt 0:00:02]} Nf4 {[%emt 0:00:02]} 67. Ra5+ {[%emt 0:00:02]} Nd5 {[%emt 0:00:07]} 68. Nc3 {[%emt 0:00:02]} Rxc3 {[%emt 0:00:05]} 1-0